Cogmind - Beta 13 @@@ ROGUE MODE // 2024.05.18 @ 17:22:02 Player: Cheeriohz Result: Destroyed by G-34 Mercenary with Small Laser Performance ------------- Evolutions (0) 0 Regions Visited (2) 400 Robots Destroyed (31) 155 Value Destroyed (489) 489 Prototype IDs (0) 0 Alien Tech Used (0) 0 Bonus (0) 0 TOTAL SCORE: 1044 Bonus ------- None Cogmind --------- Core Integrity 0/250 Matter 325/400 Energy 250/250 System Corruption 0% Temperature Cool (6) Movement Rolling (175) Ox5 Location -10/Mines Parts ------- > --- POWER (1) -------- Ion Engine > --- PROPULSION (2) --- Compact Wheel > --- UTILITY (2) ------ Huge Storage Unit Medium Matter Pod > --- WEAPON (2) ------- Light Assault Rifle Grenade Launcher > --- INVENTORY (25) --- Light Ion Engine Light Ion Engine Light Treads Light Treads Light Treads Light Treads Wheel Wheel Wheel Compact Wheel Heat Sink Huge Storage Unit Improved Terrain Scanner Seismic Detector Seismic Detector Hacking Suite Medium Laser Light Assault Rifle Light Assault Rifle Light Assault Rifle Light Assault Rifle Datajack Mining Laser Peak State ------------ > --- POWER ------------ Ion Engine > --- PROPULSION ------- Compact Wheel Compact Wheel > --- UTILITY ---------- Huge Storage Unit Medium Matter Pod > --- WEAPON ----------- Medium Laser Light Assault Rifle > --- INVENTORY -------- Light Ion Engine Light Treads Light Treads Light Treads Light Treads Wheel Wheel Wheel Compact Wheel Compact Wheel Compact Wheel Heat Sink Huge Storage Unit Improved Terrain Scanner Seismic Detector Seismic Detector Medium Laser Mining Laser [Rating: 9] Favorites ----------- Power Ion Engine Engine Ion Engine Propulsion Compact Wheel Treads Light Treads Leg Aluminum Leg Wheel Compact Wheel Utility Huge Storage Unit Device Seismic Detector Storage Huge Storage Unit Weapon Light Assault Rifle Energy Gun Medium Laser Ballistic Gun Light Assault Rifle Launcher Grenade Launcher Build | -11 -10 -10 ------- Run | Yrd Mat Min Slots Evolved . | . . . Power . | . . . Propulsion . | . . . Utility . | . . . Weapon . | . . . Parts Attached 27 | 1 20 6 Power 2 | . 1 1 Engine 2 | . 1 1 Core . | . . . Reactor . | . . . Propulsion 8 | . 7 1 Treads 1 | . 1 . Leg . | . . . Wheel 7 | . 6 1 Hover . | . . . Flight . | . . . Utility 10 | 1 8 1 Device 3 | 1 2 . Storage 7 | . 6 1 Processor . | . . . Hackware . | . . . Protection . | . . . Artifact . | . . . Weapon 7 | . 4 3 Energy Gun 2 | . 2 . Energy Cannon . | . . . Ballistic Gun 3 | . 2 1 Ballistic Cannon . | . . . Launcher 2 | . . 2 Special Weapon . | . . . Impact Weapon . | . . . Slashing Weapon . | . . . Piercing Weapon . | . . . Special Melee Weapon . | . . . Unidentified Prototypes . | . . . Parts Lost 9 | . 5 4 Power 2 | . 1 1 Propulsion 5 | . 3 2 Utility 1 | . . 1 Weapon 1 | . 1 . Highest Loss Streak 3 | . 3 3 To Critical Strikes . | . . . Average Slot Usage (%) 98 | . 99 96 Engine 13 | . 13 14 Leg 2 | . 2 . Wheel 24 | . 24 24 Device 8 | . 9 6 Storage 19 | . 18 21 Energy Gun 8 | . 11 . Ballistic Gun 18 | . 16 23 Launcher 1 | . . 4 Naked Turns . | . . . Heaviest Build 91 | 14 90 91 Greatest Support 32 | 20 32 32 Greatest Overweight (x) 5 | . 5 5 Average Overweight (x) 2 | . 1 2 Largest Inventory Capacity 25 | 8 25 25 Average Capacity 22 | 8 23 25 Most Carried 25 | 7 25 25 Average Carried 16 | 6 14 24 Final Capacity 25 | 8 25 25 Final Carried 25 | 7 25 23 Class Distribution -------------------- 100% | Mutant Dominant Class ---------------- Mutant | -10/Materials Mutant | -10/Mines Resources | -11 -10 -10 ----------- Run | Yrd Mat Min Matter Collected 664 | 218 329 117 Remotely . | . . . Salvage Created 745 | 105 507 133 Parts 57 | 5 37 15 Haulers Intercepted 1 | . 1 . Recyclers Shooed . | . . . Parts Field Recycled . | . . . Retrieved Matter . | . . . Parts Self-Destructed . | . . . Prevented . | . . . Kills | -11 -10 -10 ------- Run | Yrd Mat Min Combat Hostiles Destroyed 23 | . 15 8 Guns 17 | . 15 2 AOE 6 | . . 6 Classes Destroyed 8 | 2 6 . Worker 2 | . 1 1 Builder 1 | . 1 . Tunneler 1 | 1 . . Hauler 1 | . 1 . Recycler 1 | 1 . . Operator 2 | . 2 . Swarmer 15 | . 9 6 Grunt 8 | . 6 2 Best Kill Streak 5 | 1 5 3 Combat Bots Only 3 | . 3 3 Max Kills in Single Turn 2 | 1 2 2 Gunslinging 1 | . 1 . Exploded 2 | . . 2 Melee . | . . . Uniques/NPCs Destroyed . | . . . Combat | -11 -10 -10 -------- Run | Yrd Mat Min Hostile Shots Fired 128 | . 64 64 Missed 38 | . 19 19 Damage Taken 1109 | . 528 581 Core 252 | . 106 146 Absorbed by Shields . | . . . Core Remaining (%) 100 | 100 . . Volleys Fired 93 | 8 51 34 Largest 2 | 2 2 2 Hottest 70 | 70 70 40 Shots Fired 177 | 16 101 60 Gun 169 | 16 101 52 Cannon . | . . . Launcher 8 | . . 8 Special . | . . . Kinetic 120 | 8 60 52 Thermal 49 | 8 41 . Explosive 8 | . . 8 Electromagnetic . | . . . Robot Hit Streak 10 | 5 7 10 Robot Miss Streak 3 | 2 3 2 Penetration Max . | . . . Secondary Targets 4 | . 3 1 Max Gunslinging Chain 1 | . 1 1 Shots Hit Robots 117 | 10 68 39 Core Hits 57 | 4 34 19 Critical Kills . | . . . Critical Parts Destroyed 1 | . . 1 Critical Strikes 2 | . 1 1 Burn 1 | . 1 . Destroy 1 | . . 1 Melee Attacks . | . . . Impact . | . . . Slashing . | . . . Piercing . | . . . Sneak Attacks . | . . . Combat Hostiles . | . . . Follow-up Attacks . | . . . Damage Inflicted 1474 | 98 693 683 Guns 1058 | 98 693 267 Cannons . | . . . Explosions 416 | . . 416 Melee . | . . . Ramming . | . . . Kinetic 601 | 36 298 267 Thermal 457 | 62 395 . Explosive 416 | . . 416 Electromagnetic . | . . . Impact . | . . . Slashing . | . . . Piercing . | . . . Highest Corruption . | . . . Average Corruption . | . . . Corruption Purged . | . . . Corruption Blocked . | . . . Overload Shots . | . . . Overflow Damage 15 | . . 15 Projectiles . | . . . Explosions 15 | . . 15 Melee . | . . . Knockbacks . | . . . Impact . | . . . Kinetic . | . . . Secondary . | . . . Self-Inflicted Damage 57 | . . 57 Shots 3 | . . 3 Rammed . | . . . Targets Rammed . | . . . Kicked . | . . . Crushed . | . . . Highest Temperature 100 | 100 90 38 Average Temperature 28 | 38 31 13 Received Heat Transfer 351 | . 108 243 Siege Activations . | . . . Robots Corrupted . | . . . Combat Hostiles . | . . . Parts Fried . | . . . Impact Corruptions . | . . . Robots Melted . | . . . Combat Hostiles . | . . . Parts Melted 2 | . 2 . Heat Transferred 1216 | 185 1031 . Parts Sabotaged . | . . . Parts Stolen . | . . . Parts Stripped . | . . . Power Chain Reactions . | . . . Alert | -11 -10 -10 ------- Run | Yrd Mat Min Peak Influence 265 | 10 265 234 Initial 44 | . 6 44 Average 124 | 6 128 133 Maximum Alert Level 1 | . 1 1 Low Security (%) 78 | 100 79 70 Level 1 21 | . 20 29 Level 2 . | . . . Level 3 . | . . . Level 4 . | . . . Level 5 . | . . . High Security . | . . . Max Security . | . . . Squads Dispatched 3 | . 3 . Investigation 1 | . 1 . Extermination . | . . . Reinforcement 2 | . 2 . Assault . | . . . Garrison . | . . . Intercept . | . . . Searches Triggered . | . . . Construction Impeded . | . . . Haulers Reinforced . | . . . Active Scanning Responses . | . . . Cargo Convoy Interrupts . | . . . Stealth | -11 -10 -10 --------- Run | Yrd Mat Min Distress Signals . | . . . Communications Jammed . | . . . Distress Signals . | . . . Times Spotted 45 | . 35 10 Peak Tracking Total 6 | . 6 3 Tactical Retreats 1 | . 1 . Traps | -11 -10 -10 ------- Run | Yrd Mat Min Traps Triggered 3 | . 3 . Indirectly . | . . . Trap Hack Attempts . | . . . Triggered . | . . . Disarmed . | . . . Reprogrammed . | . . . Reused . | . . . Traps Extracted . | . . . Installed . | . . . Triggered . | . . . Machines | -11 -10 -10 ---------- Run | Yrd Mat Min Machines Disabled . | . . . Max in Single Turn . | . . . Machines Repaired . | . . . Machines Dismantled . | . . . Machines Sabotaged . | . . . Overloaded Fab Kills . | . . . Hacking | -11 -10 -10 --------- Run | Yrd Mat Min Machines Accessed 7 | . 7 . Terminals 6 | . 6 . Fabricators . | . . . Repair Stations . | . . . Recycling Units 1 | . 1 . Scanalyzers . | . . . Garrison Access . | . . . Total Hacks 20 | . 20 . Successful 7 | . 7 . Failed 13 | . 13 . Catastrophic 1 | . 1 . Database Lockouts . | . . . Manual 20 | . 20 . Terminals 19 | . 19 . Fabricators . | . . . Repair Stations . | . . . Recycling Units 1 | . 1 . Scanalyzers . | . . . Garrison Access . | . . . Terminal Hacks 4 | . 4 . Part Schematic 1 | . 1 . Robot Analysis 3 | . 3 . Fabricator Hacks . | . . . Repair Station Hacks . | . . . Recycling Unit Hacks . | . . . Scanalyzer . | . . . Garrison Access Hacks . | . . . Unauthorized Hacks 3 | . 3 . Terminals 2 | . 2 . Botnet 2 | . 2 . Fabricators . | . . . Repair Stations . | . . . Recycling Units 1 | . 1 . Tunnel 1 | . 1 . Scanalyzers . | . . . Garrison Access . | . . . Data Cores Recovered . | . . . Used . | . . . Hacking Detections 6 | . 6 . Full Trace Events . | . . . Feedback Events . | . . . Feedback Blocked . | . . . Robot Schematics Acquired . | . . . Robots Built . | . . . Authchips . | . . . Time . | . . . Total Robot Build Rating . | . . . Part Schematics Acquired 1 | . 1 . Parts Built . | . . . Authchips . | . . . Time . | . . . Total Part Build Rating . | . . . Parts Repaired . | . . . Time . | . . . Parts Recycled . | . . . Recycled Matter . | . . . Retrieved Matter . | . . . Retrieved Components . | . . . Parts Scanalyzed . | . . . Part Schematics Acquired . | . . . Parts Damaged . | . . . Bothacking | -11 -10 -10 ------------ Run | Yrd Mat Min Used RIF Installer . | . . . Robots Hacked . | . . . Non-combat . | . . . Combat . | . . . Robot Hacks Applied . | . . . Relay Couplers Released . | . . . Fabnet Peak Effective % . | . . . Robots Rewired . | . . . Allies Hacked . | . . . Hacks Repelled . | . . . Allies | -11 -10 -10 -------- Run | Yrd Mat Min Total Allies . | . . . Largest Group . | . . . Highest-Rated Group . | . . . Highest-Rated Ally . | . . . Total Orders . | . . . Ally Attacks . | . . . Total Damage . | . . . Kills . | . . . Allies Corrupted . | . . . Allies Melted . | . . . Intel | -11 -10 -10 ------- Run | Yrd Mat Min Robot Analysis Total 3 | . 3 . Derelict Logs Recovered . | . . . Drone Launches . | . . . Drone Recoveries . | . . . Exploration | -11 -10 -10 ------------- Run | Yrd Mat Min Turns Passed 1525 | 72 1045 408 Spaces Moved 897 | 40 628 229 Core . | . . . Treads . | . . . Legs 112 | 40 72 . Wheels 785 | . 556 229 Hover . | . . . Flight . | . . . Fastest Speed 100 | 120 100 130 Average Speed 131 | 120 130 136 Slowest Speed 175 | 120 175 175 Overloaded Moves . | . . . Propulsion Burnouts . | . . . Robots Hopped . | . . . Cave-ins Triggered . | . . . Exploration Rate (%) 49 | 5 96 48 Regions Visited 2 Branch Regions 1 Pre-discovered Areas 1 | . 1 . Known Exits Taken . | . . . Unknown Exits Taken 2 | 1 1 . Scrap Searched . | . . . Spaces Dug . | . . . Terrain Destroyed 47 | . . 47 Melee . | . . . Projectile . | . . . AOE 47 | . . 47 Terrain Rammed . | . . . Walls Destroyed . | . . . Machines Disabled . | . . . Actions | -11 -10 -10 --------- Run | Yrd Mat Min Total 1088 | 49 765 274 Wait 39 | . 35 4 Move 895 | 39 627 229 Hop . | . . . Pick Up 24 | 1 22 1 Fast Attach 4 | 1 3 . Attach 9 | . 6 3 Detach 4 | . 4 . Swap 14 | . 11 3 Drop 6 | . 6 . Fire 93 | 8 51 34 Melee . | . . . Ram . | . . . Kick . | . . . Crush . | . . . Escape Stasis . | . . . Rewire . | . . . Trap . | . . . Miscellaneous . | . . . Route ------- -11/Scrapyard -10/Materials (discovered 5 exits: [*Mat x3] / [*Min x2]) -10/Mines (discovered 2 exits: [*Mat x2]) History --------- Turn | Location | Event 18 | -11/Scrapyard | Discovered new exit (range 3) 73 | -11/Scrapyard | Entered Materials 222 | -10/Materials | Discovered new exit (range 8) 269 | -10/Materials | Discovered new exit (range 11) 310 | -10/Materials | Build established: Mutant 524 | -10/Materials | Discovered new exit (range 7) 728 | -10/Materials | Lost 3 parts (1p1n1w) 729 | -10/Materials | Discovered new exit (range 16) 929 | -10/Materials | Discovered new exit (range 8) 1118 | -10/Materials | Entered Mines 1150 | -10/Mines | Found a hidden stash of uninstalled traps 1170 | -10/Mines | Discovered new exit (range 6) 1197 | -10/Mines | Discovered new exit (range 4) 1304 | -10/Mines | Core integrity fell below 50% 1360 | -10/Mines | Lost 3 parts (1p1n1u) 1521 | -10/Mines | Core integrity fell below 20% 1526 | -10/Mines | Destroyed by G-34 Mercenary with Small Laser Last Messages --------------- 01350_ G-47 Trooper destroyed. 01361_ Acquired Lgt. Ion Engine. 01362_ Acquired 14 matter. 01374_ Acquired 45 matter. 01379_ Acquired 53 matter. 01389_ Destroyed Lgt. Ion Engine. 01398_ S-10 Pest destroyed. 01409_ Acquired 2 matter. 01460_ K-01 Serf collects debris. 01471_ U-05 Engineer lays Concrete. 01480_ K-01 Serf collects debris. 01481_ U-05 Engineer lays Concrete. 01487_ The unstable cave ceiling collapses. 01487_ K-01 Serf crushed by falling debris. 01487_ U-05 Engineer lays Concrete. 01488_ K-01 Serf collects debris. 01489_ U-05 Engineer lays Concrete. 01507_ K-01 Serf collects debris. 01524_ Com. Wheel destroyed. 01524_ Destroyed Com. Wheel. Map ----- +----------------------------------------------------+ | ??????????????????????????????????#####???### #### | | ??????????????????????????????????# ??? | | ??????????????????????????????????# ??? | | ?????????????????????????????####?# ##?????###?## | | ????????????????????????????## ### ######?????# | | ????????????????????????????# ## ###???? | | ????????????????????????????# #???? | | ???????????????????????????## ##??? | | ??????????????????????????## [ = ##?? | | ??????????????????????????# = ### | | ??????????????????????????# # # | | ???????????????????????????# ###### = | | ??????????????????????????## ## #????## | | ???????????????????????#### r ## ## #?????## | | ??????????????????????## ## # #??????# | | ??????????????????????# ##### ###??????# | | ??????????????????????# ######????????### | | ?????????????#????????# ##????????????? | | ?????????????# ???????# #????????????? | | ?????????????# ??????# ## #??????????? | | ??????????????# ????# ####### #??????????? | | ??????????????# ##### #??????####??????????? | | ???????????????# #????????????????????? | | ???????????????# gg #????????????????????? | | ???????????????# #????????????????????? | | ???????????????# @ #?????????????????????? | | ???????????????## ### #?????????????????????? | | ????????????????###???### #?????????????????????? | | ????????????????????????####?????????????????????? | | ?????????????????????????????????????????????????? | | ?????????????????????????????????????????????????? | | ?????????????????????????????????????????????????? | | ?????????????????????????????????????????????????? | | ?????????????????????????????????????????????????? | | ?????????????????????????????????????????????????? | | ?????????????????????????????????????????????????? | | ?????????????????????????????????????????????????? | | ?????????????????????????????????????????????????? | | ?????????????????????????????????????????????????? | | ?????????????????????????????????????????????????? | | ?????????????????????????????????????????????????? | | | | | | | | | | | | | | | | | | | +----------------------------------------------------+ Best States ------------- Heat Dissipation 25 Energy Generation 10 Energy Capacity 250 Matter Stores 400 Matter Capacity 400 Sight Range 16 Terrain Scan Density 10 Evasion (%) 55 Recoil Reduction 1 Item Schematics ----------------- Hcp. Storage Unit | -10/Materials | Hacked Robot Schematics ------------------ None Fabricated ------------ Nothing Alien Tech Used ----------------- None Achievements -------------- None Challenges ------------ None Game ------ Seed MinesnifferChainStripper Manual? 0 Play Time 00:12:50 Cumulative 196.7 hours Start 2024.05.18 @ 17:11:23 End 2024.05.18 @ 17:22:02 Sessions 1 Manual Loads 0 Difficulty Rogue Special Mode None Game No. 154 Rogue 154 Adventurer 0 Explorer 0 Win Type - Total 3 Types 2/0/0/1/0/0/0/0/0 Lore% 59 Gallery% 81 Achievement% 63 Wizard Run 0 Options --------- Layout 2 ASCII 0 Keyboard 1 Movement Numpad Keybinds 0 Fullscreen 1 Font 32/SmallcapsGlow Map View 77x44 Zoom Use 0% Tactical HUD 1 Map Filters NONE Filters NONE Steam 1 RUN: 4c3b00e9-f0ff-44ab-b8d5-639618b94974